Cogmind - Beta 11.1 @@@ ROGUE MODE // 2022.05.18 @ 21:50:58 Player: Pogmind Result: Destroyed by Y-45 Defender with Heavy Assault Rifle Performance ------------- Evolutions (2) 1000 Regions Visited (3) 600 Robots Destroyed (0) 0 Value Destroyed (0) 0 Prototype IDs (1) 20 Alien Tech Used (0) 0 Bonus (470) 470 TOTAL SCORE: 2090 Bonus ------- Pacifist 470 Cogmind --------- Core Integrity 0/550 Matter 262/300 Energy 65/100 System Corruption 0% Temperature Cool (4) Movement Flying (32) Location -8/Materials Parts ------- > --- POWER (1) -------- (None) > --- PROPULSION (2) --- Improved VTOL Module Improved VTOL Module > --- UTILITY (6) ------ Melee Analysis Suite > --- WEAPON (2) ------- (None) > --- INVENTORY (5) ---- Light Ion Engine Light Deuterium Engine Small Storage Unit Compact Matter Pod (0) Datajack Peak State ------------ > --- POWER ------------ (None) > --- PROPULSION ------- Improved VTOL Module Improved VTOL Module > --- UTILITY ---------- Melee Analysis Suite > --- WEAPON ----------- (None) > --- INVENTORY -------- Light Ion Engine Light Deuterium Engine Small Storage Unit Compact Matter Pod Datajack [Rating: 11] Favorites ----------- Power Light Ion Engine Engine Light Ion Engine Propulsion Improved VTOL Module Flight Unit Improved VTOL Module Utility Sensor Array Device Sensor Array Storage Small Storage Unit Processor Melee Analysis Suite Weapon None Build | -11 -10 -9 -8 ------- Run | Scr Mat Mat Mat Slots Evolved 4 | . . 2 2 Power . | . . . . Propulsion . | . . . . Utility 4 | . . 2 2 Weapon . | . . . . Parts Attached 8 | 1 2 . 5 Power 1 | 1 . . . Engine 1 | 1 . . . Core . | . . . . Reactor . | . . . . Propulsion 3 | . . . 3 Treads . | . . . . Leg . | . . . . Wheel . | . . . . Hover . | . . . . Flight 3 | . . . 3 Utility 4 | . 2 . 2 Device 1 | . 1 . . Storage 2 | . 1 . 1 Processor 1 | . . . 1 Hackware . | . . . . Protection . | . . . . Artifact . | . . . . Weapon . | . . . . Energy Gun . | . . . . Energy Cannon . | . . . . Ballistic Gun . | . . . . Ballistic Cannon . | . . . . Launcher . | . . . . Special Weapon . | . . . . Impact Weapon . | . . . . Slashing Weapon . | . . . . Piercing Weapon . | . . . . Special Melee Weapon . | . . . . Unidentified Prototypes 1 | . . . 1 Parts Lost 1 | . 1 . . Power . | . . . . Propulsion . | . . . . Utility 1 | . 1 . . Weapon . | . . . . Highest Loss Streak 1 | . 1 . . To Critical Strikes . | . . . . Average Slot Usage (%) 13 | . 25 . 11 Engine 3 | . 7 . . Device 5 | . 13 . . Storage 2 | . 4 . . Processor 2 | . . . 8 Naked Turns 130 | . 10 106 14 Heaviest Build 6 | 3 6 . . Greatest Support 10 | 3 3 3 10 Greatest Overweight (x) 1 | . 1 . . Average Overweight (x) . | . . . . Largest Inventory Capacity 30 | 5 8 5 30 Average Capacity 5 | 5 6 5 5 Most Carried 5 | . 2 3 5 Average Carried 2 | . . 2 4 Final Capacity 5 | 5 5 5 5 Final Carried 5 | . 2 3 5 Class Distribution -------------------- 100% | Mutant Dominant Class ---------------- Mutant | -10/Materials Mutant | -9/Materials Mutant | -8/Materials Resources | -11 -10 -9 -8 ----------- Run | Scr Mat Mat Mat Matter Collected 237 | 183 . 42 12 Remotely . | . . . . Salvage Created . | . . . . Parts . | . . . . Haulers Intercepted . | . . . . Recyclers Shooed . | . . . . Parts Field Recycled . | . . . . Retrieved Matter . | . . . . Parts Self-Destructed . | . . . . Prevented . | . . . . Kills | -11 -10 -9 -8 ------- Run | Scr Mat Mat Mat Combat Hostiles Destroyed . | . . . . Classes Destroyed . | . . . . Best Kill Streak . | . . . . Combat Bots Only . | . . . . Max Kills in Single Turn . | . . . . Gunslinging . | . . . . Exploded . | . . . . Melee . | . . . . Uniques/NPCs Destroyed . | . . . . Combat | -11 -10 -9 -8 -------- Run | Scr Mat Mat Mat Damage Taken 881 | . 237 59 585 Core 835 | . 215 59 561 Absorbed by Shields . | . . . . Core Remaining (%) 66 | 100 14 85 . Volleys Fired . | . . . . Largest . | . . . . Hottest . | . . . . Shots Fired . | . . . . Gun . | . . . . Cannon . | . . . . Launcher . | . . . . Special . | . . . . Kinetic . | . . . . Thermal . | . . . . Explosive . | . . . . Electromagnetic . | . . . . Robot Hit Streak . | . . . . Robot Miss Streak . | . . . . Penetration Max . | . . . . Secondary Targets . | . . . . Shots Hit Robots . | . . . . Core Hits . | . . . . Critical Kills . | . . . . Critical Parts Destroyed . | . . . . Critical Strikes . | . . . . Melee Attacks . | . . . . Impact . | . . . . Slashing . | . . . . Piercing . | . . . . Sneak Attacks . | . . . . Combat Hostiles . | . . . . Follow-up Attacks . | . . . . Damage Inflicted . | . . . . Guns . | . . . . Cannons . | . . . . Explosions . | . . . . Melee . | . . . . Ramming . | . . . . Kinetic . | . . . . Thermal . | . . . . Explosive . | . . . . Electromagnetic . | . . . . Impact . | . . . . Slashing . | . . . . Piercing . | . . . . Highest Corruption . | . . . . Average Corruption . | . . . . Corruption Purged . | . . . . Corruption Blocked . | . . . . Overload Shots . | . . . . Overflow Damage . | . . . . Projectiles . | . . . . Explosions . | . . . . Melee . | . . . . Knockbacks . | . . . . Impact . | . . . . Kinetic . | . . . . Secondary . | . . . . Self-Inflicted Damage . | . . . . Shots . | . . . . Rammed . | . . . . Targets Rammed . | . . . . Kicked . | . . . . Crushed . | . . . . Highest Temperature . | . . . . Average Temperature . | . . . . Received Heat Transfer 132 | . 54 33 45 Siege Activations . | . . . . Robots Corrupted . | . . . . Combat Hostiles . | . . . . Parts Fried . | . . . . Impact Corruptions . | . . . . Robots Melted . | . . . . Combat Hostiles . | . . . . Parts Melted . | . . . . Heat Transferred . | . . . . Parts Sabotaged . | . . . . Parts Stolen . | . . . . Parts Stripped . | . . . . Power Chain Reactions . | . . . . Missiles Intercepted . | . . . . Alert | -11 -10 -9 -8 ------- Run | Scr Mat Mat Mat Peak Influence 169 | . 15 169 144 Initial 70 | . . 1 70 Average 45 | . . 61 106 Maximum Alert Level . | . . . . Low Security (%) 100 | 100 100 100 100 Level 1 . | . . . . Level 2 . | . . . . Level 3 . | . . . . Level 4 . | . . . . Level 5 . | . . . . High Security . | . . . . Max Security . | . . . . Squads Dispatched . | . . . . Investigation . | . . . . Extermination . | . . . . Reinforcement . | . . . . Assault . | . . . . Garrison . | . . . . Intercept . | . . . . Searches Triggered . | . . . . Construction Impeded . | . . . . Haulers Reinforced . | . . . . Active Scanning Responses . | . . . . Cargo Convoy Interrupts . | . . . . Stealth | -11 -10 -9 -8 --------- Run | Scr Mat Mat Mat Distress Signals 4 | . . 2 2 Communications Jammed . | . . . . Distress Signals . | . . . . Times Spotted 33 | . 7 10 16 Peak Tracking Total 15 | . 7 14 15 Tactical Retreats 4 | . . 3 1 Traps | -11 -10 -9 -8 ------- Run | Scr Mat Mat Mat Traps Triggered 1 | . . 1 . Indirectly . | . . . . Trap Hack Attempts . | . . . . Triggered . | . . . . Disarmed . | . . . . Reprogrammed . | . . . . Reused . | . . . . Traps Extracted . | . . . . Installed . | . . . . Triggered . | . . . . Machines | -11 -10 -9 -8 ---------- Run | Scr Mat Mat Mat Machines Disabled . | . . . . Max in Single Turn . | . . . . Machines Sabotaged . | . . . . Garrisons Compromised . | . . . . Overloaded Fab Kills . | . . . . Hacking | -11 -10 -9 -8 --------- Run | Scr Mat Mat Mat Machines Accessed 6 | . . 4 2 Terminals 5 | . . 4 1 Fabricators . | . . . . Repair Stations . | . . . . Recycling Units 1 | . . . 1 Scanalyzers . | . . . . Garrison Access . | . . . . Total Hacks 21 | . . 14 7 Successful 10 | . . 8 2 Failed 11 | . . 6 5 Catastrophic . | . . . . Database Lockouts . | . . . . Manual 16 | . . 10 6 Terminals 19 | . . 14 5 Fabricators . | . . . . Repair Stations . | . . . . Recycling Units 2 | . . . 2 Scanalyzers . | . . . . Garrison Access . | . . . . Terminal Hacks 4 | . . 4 . Level Access Points 1 | . . 1 . Locate Traps 1 | . . 1 . Zone Layout 2 | . . 2 . Fabricator Hacks . | . . . . Repair Station Hacks . | . . . . Recycling Unit Hacks . | . . . . Scanalyzer . | . . . . Garrison Access Hacks . | . . . . Unauthorized Hacks 6 | . . 4 2 Terminals 5 | . . 4 1 Track 1 | . . 1 . Botnet 3 | . . 2 1 Operators 1 | . . 1 . Fabricators . | . . . . Repair Stations . | . . . . Recycling Units 1 | . . . 1 Reject 1 | . . . 1 Scanalyzers . | . . . . Garrison Access . | . . . . Data Cores Recovered . | . . . . Used . | . . . . Hacking Detections 6 | . . 4 2 Full Trace Events . | . . . . Feedback Events . | . . . . Feedback Blocked . | . . . . Robot Schematics Acquired . | . . . . Robots Built . | . . . . Authchips . | . . . . Time . | . . . . Total Robot Build Rating . | . . . . Part Schematics Acquired . | . . . . Parts Built . | . . . . Authchips . | . . . . Time . | . . . . Total Part Build Rating . | . . . . Parts Repaired . | . . . . Time . | . . . . Parts Recycled . | . . . . Recycled Matter . | . . . . Retrieved Matter . | . . . . Retrieved Components . | . . . . Parts Scanalyzed . | . . . . Part Schematics Acquired . | . . . . Parts Damaged . | . . . . Bothacking | -11 -10 -9 -8 ------------ Run | Scr Mat Mat Mat Used RIF Installer . | . . . . Robots Hacked . | . . . . Non-combat . | . . . . Combat . | . . . . Robot Hacks Applied . | . . . . Relay Couplers Released . | . . . . Fabnet Peak Effective % . | . . . . Robots Rewired . | . . . . Allies Hacked . | . . . . Hacks Repelled . | . . . . Allies | -11 -10 -9 -8 -------- Run | Scr Mat Mat Mat Total Allies . | . . . . Largest Group . | . . . . Highest-Rated Group . | . . . . Highest-Rated Ally . | . . . . Total Orders . | . . . . Ally Attacks . | . . . . Total Damage . | . . . . Kills . | . . . . Allies Corrupted . | . . . . Allies Melted . | . . . . Intel | -11 -10 -9 -8 ------- Run | Scr Mat Mat Mat Robot Analysis Total . | . . . . Derelict Logs Recovered . | . . . . Drone Launches . | . . . . Drone Recoveries . | . . . . Exploration | -11 -10 -9 -8 ------------- Run | Scr Mat Mat Mat Turns Passed 361 | 12 151 106 92 Spaces Moved 571 | 20 166 209 176 Core 533 | 20 166 209 138 Treads . | . . . . Legs . | . . . . Wheels . | . . . . Hover . | . . . . Flight 38 | . . . 38 Fastest Speed 32 | 50 50 50 32 Average Speed 60 | 50 88 50 46 Slowest Speed 100 | 50 100 50 50 Overloaded Moves . | . . . . Propulsion Burnouts . | . . . . Robots Hopped 6 | . . . 6 Cave-ins Triggered . | . . . . Exploration Rate (%) 24 | 4 42 33 19 Regions Visited 3 Branch Regions . Pre-discovered Areas . | . . . . Known Exits Taken 1 | . . 1 . Unknown Exits Taken 2 | 1 1 . . Scrap Searched . | . . . . Spaces Dug . | . . . . Terrain Destroyed . | . . . . Melee . | . . . . Projectile . | . . . . AOE . | . . . . Terrain Rammed . | . . . . Walls Destroyed . | . . . . Machines Disabled . | . . . . Actions | -11 -10 -9 -8 --------- Run | Scr Mat Mat Mat Total 577 | 20 169 209 179 Wait . | . . . . Move 556 | 19 165 208 164 Hop 6 | . . . 6 Pick Up 3 | . . 1 2 Fast Attach 7 | 1 2 . 4 Attach . | . . . . Detach 2 | . 2 . . Swap 1 | . . . 1 Drop 2 | . . . 2 Fire . | . . . . Melee . | . . . . Ram . | . . . . Kick . | . . . . Crush . | . . . . Escape Stasis . | . . . . Rewire . | . . . . Trap . | . . . . Miscellaneous . | . . . . Route ------- -11/Scrapyard -10/Materials -9/Materials (discovered 3 exits: *Mat x3) -8/Materials History --------- Turn | Location | Event 5 | -11/Scrapyard | Discovered new exit (range 15) 13 | -11/Scrapyard | Entered Materials 156 | -10/Materials | Core integrity fell below 50% 157 | -10/Materials | Discovered new exit (range 16) 160 | -10/Materials | Core integrity fell below 20% 164 | -10/Materials | Entered another Materials area 164 | -9/Materials | Evolved 2 slots: Utility x2 226 | -9/Materials | Identified exit to Materials 270 | -9/Materials | Entered another Materials area 270 | -8/Materials | Evolved 2 slots: Utility x2 305 | -8/Materials | Build established: Mutant 330 | -8/Materials | Core integrity fell below 50% 348 | -8/Materials | Core integrity fell below 20% 362 | -8/Materials | Destroyed by Y-45 Defender with Heavy Assault Rifle Last Messages --------------- 00312_ W-25 Informer sends out distress signal. 00323_ K-01 Serf collects debris. 00325_ Acquired Cargo Storage Unit. 00326_ Dropped Cargo Storage Unit. 00327_ K-01 Serf collects debris. 00341_ S-10 Pest destroyed. 00345_ Acquired VTOL Module. 00347_ Knocked back. 00349_ Slug penetrates S-10 Pest. 00349_ S-10 Pest suffers critical hit (Blast). 00349_ S-10 Pest knocked back. 00349_ S-10 Pest system corrupted by crushing effect. 00350_ Acquired 5 matter. 00352_ A-02 Transporter destroyed. 00354_ Acquired Prototype Flight Unit. 00354_ Identified Imp. VTOL Module. 00356_ Dropped VTOL Module. 00356_ K-01 Serf collects debris. 00359_ Acquired 7 matter. 00360_ K-01 Serf collects debris. Map ----- +----------------------------------------------------+ | | | | | | | | | ?????????????????????????????????????????????????? | | ?????????????????????????????????????????????????? | | ?????????????????????????????????????????????????? | | ?????????????????????????????????????????????????? | | ?????????????????????????????????????????????????? | | ?????????????????????????????????????????????????? | | ??????????????????????????????????????????######?? | | ??????????????????????????????????????????# !! ?# | | ??????????????????????????????????????????# !! # | | ??????????????????????????????????????????# # | | ??????????????????????????????????????????# / | | ????????????########??????????????????????# # | | ????????????# #??????????????????????# # | | ????????????# """ #??????????????????????######?# | | ??#####?????# """ #######???????????????????????# | | ### #?????# """ ##!!!!##??????????????????????# | | # #?????# #! !#??????????????????????# | | # #?????# #! !#????????????######???## | | # ##########+### ############## ##### | | # ==! | | + w =% | | ""# w @ Y s ==! ##### | | ""# ###+####### #####################+#####?## | | ""# # #??# #???????????????# !#??# | | # # """ #??# #???????????????# #### | | ### # "T" #??# #???????????????# / | | ??# # " " #### #???????????????# ! ! #### | | ??# # + #???????????????# #??# | | ??# # #### #???????????????# #?? | | ??# ########??# #???????????????# #?? | | ??# #?????????# #???????????????# [ #?# | | ??# #?????????# #???????????????###########?# | | ??# #?????????# #???????????????????????????# | | ??# #?????????# #???????????????????????????# | | ??# #?????????# #???????????????????????????# | | ??# #?????????# #???????????????????????????# | | ??? ?????????? ???????????????????????????## | | ???????????????? ????????????????????????????? | | ???????????????? ????????????????????????????? | | ???????????????? ????????????????????????????? | | ???????????????? #???????????????????????????? | | ????????????????? ?????????????????????????????? | | ?????????????????????????????????????????????????? | | ?????????????????????????????????????????????????? | | ?????????????????????????????????????????????????? | | ?????????????????????????????????????????????????? | +----------------------------------------------------+ Best States ------------- Heat Dissipation 31 Energy Generation 10 Energy Capacity 125 Matter Stores 300 Matter Capacity 300 Sight Range 16 Robot Scan Range 14 Terrain Scan Density 10 Evasion (%) 63 Melee Accuracy 5 Item Schematics ----------------- None Robot Schematics ------------------ None Fabricated ------------ Nothing Alien Tech Used ----------------- None Achievements -------------- None Challenges ------------ None Game ------ Seed BattlePhasingAutogun Manual? 0 Play Time 00:09:58 Cumulative 404.8 hours Start 2022.05.18 @ 21:38:10 End 2022.05.18 @ 21:50:58 Sessions 1 Manual Loads 0 Difficulty Rogue Special Mode None Game No. 25 Rogue 20 Adventurer 5 Explorer 0 Win Type - Total 18 Types 4/4/3/0/3/1/2/0/1 Lore% 75 Gallery% 85 Achievement% 78 Wizard Run 0 Options --------- ASCII 0 Keyboard 1 Movement Arrows Keybinds 0 Fullscreen 2 Font 18/SmallcapsGlow Map View 76x50 Tactical HUD 1 Map Filters NONE Filters NONE Steam 1 RUN: 5fd8d42a-fb91-4709-b6a5-6f4150327321